fUST/lending_fUST_20250408
["ID","MTS","AMOUNT","RATE_DAILY","PERIOD"]
[357483431,1744081848351,-500.0,0.00023013,2]
[357483432,1744081848360,-500.0,0.00023013,2]
[357483433,1744081848370,-500.0,0.00023013,2]
[357483434,1744081848381,-500.0,0.00023013,2]
[357483435,1744081848391,-500.0,0.00023013,2]
[357483436,1744081848402,-789.79,0.00023013,2]
[357483437,1744081848412,-1688.2,0.00023013,2]
[357483438,1744081848422,-500.0,0.00023013,2]
[357483439,1744081848432,-500.0,0.00023013,2]
[357483440,1744081848442,-1342.25,0.00023013,2]
[357483441,1744081848452,-500.0,0.00023013,2]
[357483442,1744081848461,-500.0,0.00023013,2]
[357483443,1744081848472,-500.0,0.00023013,2]
[357483444,1744081848481,-500.0,0.00023013,2]
[357483445,1744081848491,-958.86,0.00023013,2]
[357483446,1744081848501,-1653.17,0.00023013,2]
[357483447,1744081848512,-500.0,0.00023013,2]
[357483448,1744081848522,-500.0,0.00023013,2]
[357483449,1744081848531,-2115.74,0.00023013,2]
[357483450,1744081848541,-1255.28,0.00023013,2]
[357483451,1744081848552,-912.84,0.00023013,2]
[357483452,1744081848562,-500.0,0.00023013,2]
[357483453,1744081848571,-515.31,0.00023013,2]
[357483454,1744081848581,-500.0,0.00023013,2]
[357483455,1744081848591,-828.11,0.00023013,2]
[357483456,1744081848602,-500.0,0.00023013,2]
[357483457,1744081848613,-522.7,0.00023013,2]
[357483458,1744081848623,-665.53,0.00023013,2]
[357483459,1744081848632,-500.0,0.00023013,2]
[357483460,1744081848643,-500.0,0.00023013,2]
[357483461,1744081848653,-500.0,0.00023013,2]
[357483462,1744081848663,-500.0,0.00023013,2]
[357483463,1744081848673,-592.81,0.00023013,2]
[357483464,1744081848683,-500.0,0.00023013,2]
[357483465,1744081848692,-1007.96,0.00023013,2]
[357483466,1744081848703,-1513.92,0.00023013,2]
[357483467,1744081848713,-500.0,0.00023013,2]
[357483468,1744081848723,-500.0,0.00023013,2]
[357483469,1744081848733,-1267.41,0.00023013,2]
[357483470,1744081848743,-500.0,0.00023013,2]
[357483471,1744081848753,-1030.35,0.00023013,2]
[357483472,1744081848763,-500.0,0.00023013,2]
[357483473,1744081848773,-500.0,0.00023013,2]
[357483474,1744081848782,-500.0,0.00023013,2]
[357483475,1744081848792,-500.0,0.00023013,2]
[357483476,1744081848801,-4108.07,0.00023013,2]
[357483477,1744081848812,-500.0,0.00023013,2]
[357483478,1744081848822,-500.0,0.00023013,2]
[357483479,1744081848832,-1082.33,0.00023013,2]
[357483480,1744081848841,-500.0,0.00023013,2]
[357483481,1744081848851,-500.0,0.00023013,2]
[357483482,1744081848861,-543.95,0.00023013,2]
[357483483,1744081848871,-500.0,0.00023013,2]
[357483484,1744081848881,-500.0,0.00023013,2]
[357483485,1744081848891,-1330.51,0.00023013,2]
[357483486,1744081848901,-500.0,0.00023013,2]
[357483487,1744081848911,-1439.3,0.00023013,2]
[357483488,1744081848921,-465.5857413,0.00023013,2]
[357483489,1744081848931,-961.73,0.00023013,2]
[357483490,1744081848941,-836.08,0.00023013,2]
[357483491,1744081848950,-1514.49,0.00023013,2]
[357483492,1744081848960,-1141.15,0.00023013,2]
[357483493,1744081848970,-792.22,0.00023013,2]
[357483494,1744081848980,-2372.07,0.00023013,2]
[357483495,1744081848990,-500.0,0.00023013,2]
[357483496,1744081849000,-500.0,0.00023013,2]
[357483497,1744081849010,-500.0,0.00023013,2]
[357483498,1744081849020,-910.81,0.00023013,2]
[357483499,1744081849033,-500.0,0.00023013,2]
[357483500,1744081849042,-500.0,0.00023013,2]
[357483501,1744081849052,-1896.06,0.00023013,2]
[357483502,1744081849062,-1257.28,0.00023013,2]
[357483503,1744081849072,-866.78,0.00023013,2]
[357483504,1744081849082,-152.13772553,0.00023013,2]
[357483505,1744081849092,-500.0,0.00023013,2]
[357483506,1744081849101,-500.0,0.00023013,2]
[357483507,1744081849111,-500.0,0.00023013,2]
[357483508,1744081849121,-884.67,0.00023013,2]
[357483509,1744081849132,-500.0,0.00023013,2]
[357483510,1744081849143,-500.0,0.00023013,2]
[357483511,1744081849153,-1740.48,0.00023013,2]
[357483512,1744081849163,-500.0,0.00023013,2]
[357483513,1744081849172,-500.0,0.00023013,2]
[357483514,1744081849182,-500.0,0.00023013,2]
[357483515,1744081849192,-536.56,0.00023013,2]
[357483516,1744081849201,-969.19,0.00023013,2]
[357483517,1744081849211,-500.0,0.00023013,2]
[357483518,1744081849220,-1688.58,0.00023013,2]
[357483519,1744081849229,-954.3,0.00023013,2]
[357483520,1744081849239,-1338.67,0.00023013,2]
[357483521,1744081849249,-500.0,0.00023013,2]
[357483522,1744081849258,-500.0,0.00023013,2]
[357483523,1744081849268,-500.0,0.00023013,2]
[357483524,1744081849277,-500.0,0.00023013,2]
[357483525,1744081849288,-500.0,0.00023013,2]
[357483526,1744081849301,-6846.45,0.00023013,2]
[357483527,1744081849311,-500.0,0.00023013,2]
[357483528,1744081849320,-500.0,0.00023013,2]
[357483529,1744081849330,-653.14,0.00023013,2]
[357483530,1744081849340,-260.21501903,0.00023013,2]
[357483531,1744081849350,-194.43115358,0.00023013,2]
[357483532,1744081849360,-500.0,0.00023013,2]
[357483533,1744081849370,-1391.18,0.00023013,2]
[357483534,1744081849381,-500.0,0.00023013,2]
[357483535,1744081849392,-1149.97,0.00023013,2]
[357483536,1744081849402,-218.47765379,0.00023187,2]
[357483537,1744081849411,-500.0,0.00023287,2]
[357483538,1744081849421,-500.0,0.00023287,2]
[357483539,1744081849432,-209.40938492,0.00023287,2]
[357483540,1744081849442,-247.73462738,0.00023287,2]
[357483541,1744081849453,-500.0,0.00023287,2]
[357483542,1744081849464,-500.0,0.00023287,2]
[357483543,1744081849475,-500.0,0.00023287,2]
[357483544,1744081849486,-500.0,0.00023287,2]
[357483545,1744081849496,-200.0,0.00023287,2]
[357483546,1744081849506,-2803.81,0.00023287,2]
[357483547,1744081849517,-500.0,0.00023287,2]
[357483548,1744081849527,-500.0,0.00023287,2]
[357483549,1744081849539,-500.0,0.00023287,2]
[357483550,1744081849550,-500.0,0.00023287,2]
[357483551,1744081849561,-500.0,0.00023287,2]
[357483552,1744081849571,-500.0,0.00023287,2]
[357483553,1744081849581,-500.0,0.00023287,2]
[357483554,1744081849591,-181.3280427,0.00023287,2]
[357483555,1744081849601,-500.0,0.00023287,2]
[357483556,1744081849611,-968.81,0.00023287,2]
[357483557,1744081849621,-500.47,0.00023287,2]
[357483558,1744081849631,-500.0,0.00023287,2]
[357483559,1744081849640,-500.0,0.00023287,2]
[357483560,1744081849650,-809.84,0.00023287,2]
[357483561,1744081849660,-764.08,0.00023287,2]
[357483562,1744081849670,-500.0,0.00023287,2]
[357483563,1744081849679,-500.0,0.00023287,2]
[357483564,1744081849688,-511.46,0.00023287,2]
[357483565,1744081849698,-643.77348639,0.00023287,2]
[357483566,1744081849708,-500.0,0.00023287,2]
[357483567,1744081849718,-550.16,0.00023287,2]
[357483568,1744081849727,-921.48,0.00023287,2]
[357483569,1744081849740,-500.0,0.00023287,2]
[357483570,1744081849749,-500.0,0.00023287,2]
[357483571,1744081849760,-930.44,0.00023287,2]
[357483572,1744081849770,-647.67,0.00023287,2]
[357483573,1744081849779,-500.0,0.00023287,2]
[357483574,1744081849788,-500.0,0.00023287,2]
[357483575,1744081849799,-500.0,0.00023287,2]
[357483576,1744081849808,-500.0,0.00023287,2]
[357483577,1744081849818,-500.0,0.00023287,2]
[357483578,1744081849827,-556.88,0.00023287,2]
[357483579,1744081849838,-500.0,0.00023287,2]
[357483580,1744081849847,-500.0,0.00023287,2]
[357483581,1744081849858,-819.25,0.00023287,2]
[357483582,1744081849867,-500.0,0.00023287,2]
[357483583,1744081849877,-500.0,0.00023287,2]
[357483584,1744081849886,-500.0,0.00023287,2]
[357483585,1744081849895,-500.0,0.00023287,2]
[357483586,1744081849904,-500.0,0.00023287,2]
[357483587,1744081849913,-789.79,0.00023287,2]
[357483588,1744081849922,-500.0,0.00023287,2]
[357483589,1744081849932,-500.0,0.00023287,2]
[357483590,1744081849941,-1688.2,0.00023287,2]
[357483591,1744081849950,-1342.25,0.00023287,2]
[357483592,1744081849960,-500.0,0.00023287,2]
[357483593,1744081849969,-500.0,0.00023287,2]
[357483594,1744081849978,-500.0,0.00023287,2]
[357483595,1744081849988,-500.0,0.00023287,2]
[357483596,1744081849997,-958.86,0.00023287,2]
[357483597,1744081850006,-1653.17,0.00023287,2]
[357483598,1744081850016,-500.0,0.00023287,2]
[357483599,1744081850025,-500.0,0.00023287,2]
[357483600,1744081850034,-2115.74,0.00023287,2]
[357483601,1744081850043,-1255.28,0.00023287,2]
[357483602,1744081850053,-912.84,0.00023287,2]
[357483603,1744081850063,-500.0,0.00023287,2]
[357483604,1744081850072,-515.31,0.00023287,2]
[357483605,1744081850081,-500.0,0.00023287,2]
[357483606,1744081850091,-828.11,0.00023287,2]
[357483607,1744081850100,-522.7,0.00023287,2]
[357483608,1744081850110,-500.0,0.00023287,2]
[357483609,1744081850120,-665.53,0.00023287,2]
[357483610,1744081850129,-500.0,0.00023287,2]
[357483611,1744081850139,-500.0,0.00023287,2]
[357483612,1744081850148,-375.96568439,0.00023287,2]
[357483613,1744081850158,-500.0,0.00023287,2]
[357483614,1744081850167,-592.81,0.00023287,2]
[357483615,1744081850176,-500.0,0.00023287,2]
[357483616,1744081850186,-1007.96,0.00023287,2]
[357483617,1744081850195,-1513.92,0.00023287,2]
[357483618,1744081850204,-500.0,0.00023287,2]
[357483619,1744081850213,-1267.41,0.00023287,2]
[357483620,1744081850223,-500.0,0.00023287,2]
[357483621,1744081850232,-500.0,0.00023287,2]
[357483622,1744081850242,-1030.35,0.00023287,2]
[357483623,1744081850251,-500.0,0.00023287,2]
[357483624,1744081850261,-500.0,0.00023287,2]
[357483625,1744081850270,-500.0,0.00023287,2]
[357483626,1744081850279,-500.0,0.00023287,2]
[357483627,1744081850289,-4108.07,0.00023287,2]
[357483628,1744081850302,-500.0,0.00023287,2]
[357483629,1744081850312,-412.37280438,0.00023287,2]
[357483630,1744081850322,-1082.33,0.00023287,2]
[357483631,1744081850331,-500.0,0.00023287,2]
[357483632,1744081850341,-543.95,0.00023287,2]
[357483633,1744081850350,-631.54552306,0.00023287,2]
[357483634,1744081850361,-500.0,0.00023287,2]
[357483635,1744081850371,-500.0,0.00023287,2]
[357483636,1744081850382,-1330.51,0.00023287,2]
[357483637,1744081850392,-500.0,0.00023287,2]
[357483638,1744081850401,-1439.3,0.00023287,2]
[357483639,1744081850411,-961.73,0.00023287,2]
[357483640,1744081850421,-836.08,0.00023287,2]
[357483641,1744081850432,-1141.15,0.00023287,2]
[357483642,1744081850442,-1514.49,0.00023287,2]
[357483643,1744081850452,-792.22,0.00023287,2]
[357483644,1744081850463,-2372.07,0.00023287,2]
[357483645,1744081850473,-500.0,0.00023287,2]
[357483646,1744081850632,-500.0,0.00023287,2]
[357483647,1744081850644,-500.0,0.00023287,2]
[357483648,1744081850654,-910.81,0.00023287,2]
[357483649,1744081850664,-500.0,0.00023287,2]
[357483650,1744081850674,-500.0,0.00023287,2]
[357483651,1744081850684,-1896.06,0.00023287,2]
[357483652,1744081850693,-1257.28,0.00023287,2]
[357483653,1744081850703,-866.78,0.00023287,2]
[357483654,1744081850713,-467.31502899,0.00023287,2]
[357483655,1744081850722,-500.0,0.00023287,2]
[357483656,1744081850732,-500.0,0.00023287,2]
[357483657,1744081850742,-884.67,0.00023287,2]
[357483658,1744081850751,-500.0,0.00023287,2]
[357483659,1744081850761,-500.0,0.00023287,2]
[357483660,1744081850771,-1740.48,0.00023287,2]
[357483661,1744081850781,-500.0,0.00023287,2]
[357483662,1744081850790,-500.0,0.00023287,2]
[357483663,1744081850800,-500.0,0.00023287,2]
[357483664,1744081850809,-536.56,0.00023287,2]
[357483665,1744081850819,-969.19,0.00023287,2]
[357483666,1744081850828,-500.0,0.00023287,2]
[357483667,1744081850838,-1688.58,0.00023287,2]
[357483668,1744081850848,-954.3,0.00023287,2]
[357483669,1744081850858,-1338.67,0.00023287,2]
[357483670,1744081850868,-500.0,0.00023287,2]
[357483671,1744081850877,-500.0,0.00023287,2]
[357483672,1744081850887,-223.6834008,0.00023287,2]
[357483673,1744081850896,-500.0,0.00023287,2]
[357483674,1744081850906,-500.0,0.00023287,2]
[357483675,1744081850917,-6846.45,0.00023287,2]
[357483676,1744081850927,-375.22860736,0.00023287,2]
[357483677,1744081850937,-500.0,0.00023287,2]
[357483678,1744081850947,-653.14,0.00023287,2]
[357483679,1744081850956,-500.0,0.00023287,2]
[357483680,1744081850966,-1391.18,0.00023287,2]
[357483681,1744081850975,-500.0,0.00023287,2]
[357483682,1744081850984,-1149.97,0.00023287,2]
[357483683,1744081850994,-500.0,0.00023561,2]
[357483684,1744081851004,-500.0,0.00023561,2]
[357483685,1744081851013,-500.0,0.00023561,2]
[357483686,1744081851023,-500.0,0.00023561,2]
[357483687,1744081851032,-500.0,0.00023561,2]
[357483688,1744081851041,-2803.81,0.00023561,2]
[357483689,1744081851051,-500.0,0.00023561,2]
[357483690,1744081851060,-395.25267583,0.00023561,2]
[357483691,1744081851070,-500.0,0.00023561,2]
[357483692,1744081851079,-500.0,0.00023561,2]
[357483693,1744081851089,-500.0,0.00023561,2]
[357483694,1744081851099,-500.0,0.00023561,2]
[357483695,1744081851108,-500.0,0.00023561,2]
[357483696,1744081851118,-968.81,0.00023561,2]
[357483697,1744081851128,-500.47,0.00023561,2]
[357483698,1744081851137,-500.0,0.00023561,2]
[357483699,1744081851147,-500.0,0.00023561,2]
[357483700,1744081851156,-809.84,0.00023561,2]
[357483701,1744081851166,-764.08,0.00023561,2]
[357483702,1744081851175,-500.0,0.00023561,2]
[357483703,1744081851184,-500.0,0.00023561,2]
[357483704,1744081851193,-511.46,0.00023561,2]
[357483705,1744081851203,-500.0,0.00023561,2]
[357483706,1744081851213,-550.16,0.00023561,2]
[357483707,1744081851222,-921.48,0.00023561,2]
[357483708,1744081851232,-527.15748743,0.00023561,2]
[357483709,1744081851241,-500.0,0.00023561,2]
[357483710,1744081851251,-930.44,0.00023561,2]
[357483711,1744081851261,-647.67,0.00023561,2]
[357483712,1744081851271,-500.0,0.00023561,2]
[357483713,1744081851280,-500.0,0.00023561,2]
[357483714,1744081851290,-500.0,0.00023561,2]
[357483715,1744081851304,-500.0,0.00023561,2]
[357483716,1744081851313,-500.0,0.00023561,2]
[357483717,1744081851323,-556.88,0.00023561,2]
[357483718,1744081851332,-500.0,0.00023561,2]
[357483719,1744081851343,-500.0,0.00023561,2]
[357483720,1744081851353,-819.25,0.00023561,2]
[357483721,1744081851363,-500.0,0.00023561,2]
[357483722,1744081851375,-500.0,0.00023561,2]
[357483723,1744081851385,-500.0,0.00023561,2]
[357483724,1744081851395,-500.0,0.00023561,2]
[357483725,1744081851404,-500.0,0.00023561,2]
[357483726,1744081851414,-789.79,0.00023561,2]
[357483727,1744081851425,-500.0,0.00023561,2]
[357483728,1744081851435,-500.0,0.00023561,2]
[357483729,1744081851445,-1688.2,0.00023561,2]
[357483730,1744081851454,-1342.25,0.00023561,2]
[357483731,1744081851464,-500.0,0.00023561,2]
[357483732,1744081851474,-500.0,0.00023561,2]
[357483733,1744081851484,-500.0,0.00023561,2]
[357483734,1744081851494,-500.0,0.00023561,2]
[357483735,1744081851504,-958.86,0.00023561,2]
[357483736,1744081851513,-1653.17,0.00023561,2]
[357483737,1744081851523,-500.0,0.00023561,2]
[357483738,1744081851532,-500.0,0.00023561,2]
[357483739,1744081851542,-2115.74,0.00023561,2]
[357483740,1744081851551,-1255.28,0.00023561,2]
[357483741,1744081851561,-912.84,0.00023561,2]
[357483742,1744081851570,-500.0,0.00023561,2]
[357483743,1744081851580,-515.31,0.00023561,2]
[357483744,1744081851590,-500.0,0.00023561,2]
[357483745,1744081851600,-828.11,0.00023561,2]
[357483746,1744081851610,-522.7,0.00023561,2]
[357483747,1744081851620,-500.0,0.00023561,2]
[357483748,1744081851630,-665.53,0.00023561,2]
[357483749,1744081851640,-500.0,0.00023561,2]
[357483750,1744081851650,-500.0,0.00023561,2]
[357483751,1744081851659,-500.0,0.00023561,2]
[357483752,1744081851669,-592.81,0.00023561,2]
[357483753,1744081851679,-500.0,0.00023561,2]
[357483754,1744081851688,-1007.96,0.00023561,2]
[357483755,1744081851697,-1513.92,0.00023561,2]
[357483756,1744081851707,-500.0,0.00023561,2]
[357483757,1744081851717,-1267.41,0.00023561,2]
[357483758,1744081851727,-500.0,0.00023561,2]
[357483759,1744081851737,-500.0,0.00023561,2]
[357483760,1744081851746,-1030.35,0.00023561,2]
[357483761,1744081851757,-500.0,0.00023561,2]
[357483762,1744081851766,-500.0,0.00023561,2]
[357483763,1744081851776,-500.0,0.00023561,2]
[357483764,1744081851785,-500.0,0.00023561,2]
[357483765,1744081851795,-4108.07,0.00023561,2]
[357483766,1744081851804,-537.3066955,0.00023561,2]
[357483767,1744081851813,-1082.33,0.00023561,2]
[357483768,1744081851823,-500.0,0.00023561,2]
[357483769,1744081851832,-543.95,0.00023561,2]
[357483770,1744081851842,-500.0,0.00023561,2]
[357483771,1744081851851,-500.0,0.00023561,2]
[357483772,1744081851860,-1330.51,0.00023561,2]
[357483773,1744081851870,-291.22764961,0.00023561,2]
[357483774,1744081851880,-1439.3,0.00023561,2]
[357483775,1744081851890,-961.73,0.00023561,2]
[357483776,1744081851899,-836.08,0.00023561,2]
[357483777,1744081851910,-1141.15,0.00023561,2]
[357483778,1744081851920,-1514.49,0.00023561,2]
[357483779,1744081851930,-792.22,0.00023561,2]
[357483780,1744081851939,-2372.07,0.00023561,2]
[357483781,1744081851949,-500.0,0.00023561,2]
[357483782,1744081851958,-500.0,0.00023561,2]
[357483783,1744081851968,-500.0,0.00023561,2]
[357483784,1744081851978,-910.81,0.00023561,2]
[357483785,1744081851987,-500.0,0.00023561,2]
[357483786,1744081851996,-500.0,0.00023561,2]
[357483787,1744081852006,-1896.06,0.00023561,2]
[357483788,1744081852015,-1257.28,0.00023561,2]
[357483789,1744081852024,-866.78,0.00023561,2]
[357483790,1744081852034,-500.0,0.00023561,2]
[357483791,1744081852043,-500.0,0.00023561,2]
[357483792,1744081852053,-884.67,0.00023561,2]
[357483793,1744081852062,-462.19407793,0.00023561,2]
[357483794,1744081852072,-500.0,0.00023561,2]
[357483795,1744081852082,-1740.48,0.00023561,2]
[357483796,1744081852091,-500.0,0.00023561,2]
[357483797,1744081852101,-500.0,0.00023561,2]
[357483798,1744081852110,-500.0,0.00023561,2]
[357483799,1744081852120,-536.56,0.00023561,2]
[357483800,1744081852129,-969.19,0.00023561,2]
[357483801,1744081852139,-500.0,0.00023561,2]
[357483802,1744081852149,-1688.58,0.00023561,2]
[357483803,1744081852159,-954.3,0.00023561,2]
[357483804,1744081852168,-1338.67,0.00023561,2]
[357483805,1744081852178,-500.0,0.00023561,2]
[357483806,1744081852188,-500.0,0.00023561,2]
[357483807,1744081852197,-500.0,0.00023561,2]
[357483808,1744081852207,-500.0,0.00023561,2]
[357483809,1744081852217,-6846.45,0.00023561,2]
[357483810,1744081852226,-506.90679761,0.00023561,2]
[357483811,1744081852236,-653.14,0.00023561,2]
[357483812,1744081852245,-500.0,0.00023561,2]
[357483813,1744081852254,-1391.18,0.00023561,2]
[357483814,1744081852264,-500.0,0.00023561,2]
[357483815,1744081852273,-1149.97,0.00023561,2]
[357483816,1744081852282,-500.0,0.00023835,2]
[357483817,1744081852292,-500.0,0.00023835,2]
[357483818,1744081852306,-500.0,0.00023835,2]
[357483819,1744081852315,-500.0,0.00023835,2]
[357483820,1744081852325,-178.06448576,0.00023835,2]
[357483821,1744081852334,-2803.81,0.00023835,2]
[357483822,1744081852344,-500.0,0.00023835,2]
[357483823,1744081852355,-500.0,0.00023835,2]
[357483824,1744081852364,-500.0,0.00023835,2]
[357483825,1744081852374,-500.0,0.00023835,2]
[357483826,1744081852385,-500.0,0.00023835,2]
[357483827,1744081852394,-500.0,0.00023835,2]
[357483828,1744081852404,-968.81,0.00023835,2]
[357483829,1744081852413,-500.47,0.00023835,2]
[357483830,1744081852422,-500.0,0.00023835,2]
[357483831,1744081852432,-500.0,0.00023835,2]
[357483832,1744081852442,-809.84,0.00023835,2]
[357483833,1744081852451,-764.08,0.00023835,2]
[357483834,1744081852461,-452.73808573,0.00023835,2]
[357483835,1744081852471,-517.35788877,0.00023835,2]
[357483836,1744081852480,-511.46,0.00023835,2]
[357483837,1744081852490,-500.0,0.00023835,2]
[357483838,1744081852499,-550.16,0.00023835,2]
[357483839,1744081852508,-921.48,0.00023835,2]
[357483840,1744081852518,-500.0,0.00023835,2]
[357483841,1744081852527,-930.44,0.00023835,2]
[357483842,1744081852537,-647.67,0.00023835,2]
[357483843,1744081852547,-500.0,0.00023835,2]
[357483844,1744081852556,-500.0,0.00023835,2]
[357483845,1744081852565,-500.0,0.00023835,2]
[357483846,1744081852575,-500.0,0.00023835,2]
[357483847,1744081852584,-500.0,0.00023835,2]
[357483848,1744081852594,-556.88,0.00023835,2]
[357483849,1744081852603,-500.0,0.00023835,2]
[357483850,1744081852614,-214.59994313,0.00023835,2]
[357483851,1744081852623,-819.25,0.00023835,2]
[357483852,1744081852633,-644.87762528,0.00023835,2]
[357483853,1744081852644,-500.0,0.00023835,2]
[357483854,1744081852653,-571.90904836,0.00023835,2]
[357483855,1744081852663,-500.0,0.00023835,2]
[357483856,1744081852673,-500.0,0.00023835,2]
[357483857,1744081852683,-789.79,0.00023835,2]
[357483858,1744081852693,-500.0,0.00023835,2]
[357483859,1744081852702,-500.0,0.00023835,2]
[357483860,1744081852712,-1688.2,0.00023835,2]
[357483861,1744081852722,-1342.25,0.00023835,2]
[357483862,1744081852732,-500.0,0.00023835,2]
[357483863,1744081852741,-500.0,0.00023835,2]
[357483864,1744081852751,-500.0,0.00023835,2]
[357483865,1744081852761,-500.0,0.00023835,2]
[357483866,1744081852771,-958.86,0.00023835,2]
[357483867,1744081852780,-1653.17,0.00023835,2]
[357483868,1744081852790,-500.0,0.00023835,2]
[357483869,1744081852800,-161.98988472,0.00023835,2]
[357483870,1744081852810,-2115.74,0.00023835,2]
[357483871,1744081852819,-1255.28,0.00023835,2]
[357483872,1744081852828,-912.84,0.00023835,2]
[357483873,1744081852837,-500.0,0.00023835,2]
[357483874,1744081852847,-515.31,0.00023835,2]
[357483875,1744081852857,-500.0,0.00023835,2]
[357483876,1744081852867,-828.11,0.00023835,2]
[357483877,1744081852877,-522.7,0.00023835,2]
[357483878,1744081852886,-500.0,0.00023835,2]
[357483879,1744081852895,-665.53,0.00023835,2]
[357483880,1744081852905,-500.0,0.00023835,2]
[357483881,1744081852915,-500.0,0.00023835,2]
[357483882,1744081852924,-500.0,0.00023835,2]
[357483883,1744081852934,-592.81,0.00023835,2]
[357483884,1744081852943,-500.0,0.00023835,2]
[357483885,1744081852953,-1007.96,0.00023835,2]
[357483886,1744081852963,-1513.92,0.00023835,2]
[357483887,1744081852973,-500.0,0.00023835,2]
[357483888,1744081852983,-1267.41,0.00023835,2]
[357483889,1744081852992,-500.0,0.00023835,2]
[357483890,1744081853003,-500.0,0.00023835,2]
[357483891,1744081853013,-1030.35,0.00023835,2]
[357483892,1744081853022,-500.0,0.00023835,2]
[357483893,1744081853032,-500.0,0.00023835,2]
[357483894,1744081853042,-500.0,0.00023835,2]
[357483895,1744081853052,-500.0,0.00023835,2]
[357483896,1744081853061,-4108.07,0.00023835,2]
[357483897,1744081853072,-1082.33,0.00023835,2]
[357483898,1744081853081,-500.0,0.00023835,2]
[357483899,1744081853091,-543.95,0.00023835,2]
[357483900,1744081853100,-500.0,0.00023835,2]
[357483901,1744081853111,-500.0,0.00023835,2]
[357483902,1744081853121,-1330.51,0.00023835,2]
[357483903,1744081853130,-1439.3,0.00023835,2]
[357483904,1744081853140,-836.08,0.00023835,2]
[357483905,1744081853150,-961.73,0.00023835,2]
[357483906,1744081853160,-1141.15,0.00023835,2]
[357483907,1744081853170,-1514.49,0.00023835,2]
[357483908,1744081853180,-792.22,0.00023835,2]
[357483909,1744081853189,-2372.07,0.00023835,2]
[357483910,1744081853199,-500.0,0.00023835,2]
[357483911,1744081853209,-500.0,0.00023835,2]
[357483912,1744081853218,-500.0,0.00023835,2]
[357483913,1744081853228,-910.81,0.00023835,2]
[357483914,1744081853239,-500.0,0.00023835,2]
[357483915,1744081853248,-500.0,0.00023835,2]
[357483916,1744081853258,-1896.06,0.00023835,2]
[357483917,1744081853267,-1257.28,0.00023835,2]
[357483918,1744081853277,-866.78,0.00023835,2]
[357483919,1744081853286,-500.0,0.00023835,2]
[357483920,1744081853298,-500.0,0.00023835,2]
[357483921,1744081853307,-884.67,0.00023835,2]
[357483922,1744081853317,-500.0,0.00023835,2]
[357483923,1744081853327,-1740.48,0.00023835,2]
[357483924,1744081853337,-500.0,0.00023835,2]
[357483925,1744081853347,-500.0,0.00023835,2]
[357483926,1744081853356,-500.0,0.00023835,2]
[357483927,1744081853366,-536.56,0.00023835,2]
[357483928,1744081853377,-969.19,0.00023835,2]
[357483929,1744081853387,-500.0,0.00023835,2]
[357483930,1744081853397,-1688.58,0.00023835,2]